[Event "Int SVK-ch GM 2020"]
[Site "Drienica"]
[Date "2020.08.12"]
[Round "6.4"]
[White "Nayhebaver, Martin"]
[Black "Petenyi, Tamas"]
[Result "0-1"]
[ECO "B12"]
[WhiteElo "2482"]
[BlackElo "2436"]
[Annotator "ChessBase"]
[PlyCount "116"]
[EventDate "2020.08.07"]
[EventType "tourn"]
[EventCountry "SVK"]
[SourceTitle "playchess.com"]
[Source "ChessBase"]
[SourceQuality "1"]
[TimeControl "40/5400+30:1800+30"]

1. e4 {[%emt 0:00:00]} c6 {[%emt 0:06:03]} 2. d4 {[%emt 0:00:39]} g6 {[%emt 0:00:27]} 3. Nc3 {[%emt 0:01:08]} Bg7 {[%emt 0:00:16]} 4. f4 {[%emt 0:00:43]} b5 {[%emt 0:03:35]} 5. e5 {[%emt 0:04:00]} d6 {[%emt 0:02:33]} 6. Nf3 {[%emt 0:01:29]} Nh6 {[%emt 0:01:25]} 7. Bd3 {[%emt 0:02:11]} O-O {[%emt 0:01:43]} 8. Ne4 {[%emt 0:04:36]} Nd7 {[%emt 0:04:22]} 9. O-O {[%emt 0:03:10]} Nb6 {[%emt 0:11:11]} 10. Qe2 {[%emt 0:04:03]} Bf5 {[%emt 0:11:02]} 11. Kh1 {[%emt 0:06:22]} Qd7 {[%emt 0:01:35]} 12. b3 {[%emt 0:05:39]} b4 {[%emt 0:07:14]} 13. Bd2 {[%emt 0:03:13]} Nd5 {[%emt 0:00:33]} 14. Rae1 {[%emt 0:13:31]} f6 {[%emt 0:02:04]} 15. Ng3 {[%emt 0:11:15]} Bxd3 {[%emt 0:02:11]} 16. Qxd3 {[%emt 0:00:45]} f5 {[%emt 0:04:50]} 17. Qc4 {[%emt 0:02:31]} a5 {[%emt 0:05:15]} 18. a3 {[%emt 0:04:52]} Rab8 {[%emt 0:03:00]} 19. Ra1 {[%emt 0:02:52]} Nf7 {[%emt 0:04:32]} 20. axb4 {[%emt 0:00:45]} axb4 {[%emt 0:00:06]} 21. Ra6 {[%emt 0:01:00]} Rfc8 {[%emt 0:01:08]} 22. Rfa1 {[%emt 0:01:26]} Nd8 {[%emt 0:04:36]} 23. Ne1 {[%emt 0:04:26]} Ne6 {[%emt 0:03:37]} 24. Nd3 {[%emt 0:01:22]} Kh8 {[%emt 0:07:17]} 25. Ne2 {[%emt 0:01:36]} Nec7 {[%emt 0:03:37]} 26. Ra7 {[%emt 0:08:31]} Qe8 {[%emt 0:01:01]} 27. Nxb4 {[%emt 0:01:46]} Nxb4 {[%emt 0:02:29]} 28. Bxb4 {[%emt 0:00:11]} c5 {[%emt 0:00:43]} 29. dxc5 {[%emt 0:01:05]} d5 {[%emt 0:00:10]} 30. Qc3 {[%emt 0:02:36]} Nb5 {[%emt 0:00:05]} 31. Qd2 {[%emt 0:00:06]} Nxa7 {[%emt 0:00:04]} 32. Rxa7 {[%emt 0:00:03]} Qb5 {[%emt 0:01:17]} 33. c3 {[%emt 0:03:18]} d4 {[%emt 0:00:29]} 34. Rxe7 {[%emt 0:03:44]} dxc3 {[%emt 0:00:23]} 35. Bxc3 {[%emt 0:00:08]} Rd8 {[%emt 0:00:25]} 36. Qe3 {[%emt 0:01:58]} Rd1+ {[%emt 0:00:43]} 37. Ng1 {[%emt 0:00:01]} Rd3 {[%emt 0:02:00]} 38. Qe1 {[%emt 0:01:03]} Qxb3 {[%emt 0:00:32]} 39. Bd2 {[%emt 0:00:03]} Qd5 {[%emt 0:02:00]} 40. Be3 {[%emt 0:01:11]} Qe4 {[%emt 0:01:41]} 41. Qh4 {[%emt 0:02:24]} Qxe3 {[%emt 0:08:09]} 42. Rxg7 {[%emt 0:00:25]} Kxg7 {[%emt 0:00:10]} 43. Qe7+ {[%emt 0:02:09]} Kg8 {[%emt 0:02:53]} 44. Qe6+ {[%emt 0:00:13]} Kf8 {[%emt 0:00:37]} 45. Qf6+ {[%emt 0:00:19]} Ke8 {[%emt 0:03:42]} 46. c6 {[%emt 0:09:21]} Qc5 {[%emt 0:02:45]} 47. Qh8+ {[%emt 0:00:49]} Qf8 {[%emt 0:00:55]} 48. Qxh7 {[%emt 0:00:39]} Rb1 {[%emt 0:01:16]} 49. h4 {[%emt 0:05:20]} Qf7 {[%emt 0:04:48]} 50. Qh8+ {[%emt 0:00:24]} Ke7 {[%emt 0:00:01]} 51. Kh2 {[%emt 0:03:20]} Rd8 {[%emt 0:03:01]} 52. Qh6 {[%emt 0:00:07]} Rxg1 {[%emt 0:01:24]} 53. Kxg1 Rc8 {[%emt 0:01:03]} 54. h5 {[%emt 0:03:39]} Rxc6 {[%emt 0:00:53]} 55. Qg5+ {[%emt 0:00:05]} Ke8 {[%emt 0:00:29]} 56. h6 {[%emt 0:00:33]} Qe7 {[%emt 0:00:24]} 57. Qg3 {[%emt 0:00:14]} Kf8 {[%emt 0:01:11]} 58. Qb3 {[%emt 0:00:14]} Rc1+ {[%emt 0:00:18]} 0-1

[Event "Int SVK-ch GM 2020"]
[Site "Drienica"]
[Date "2020.08.12"]
[Round "6.5"]
[White "Mrva, Martin"]
[Black "Jablonicky, Martin"]
[Result "1-0"]
[ECO "E90"]
[WhiteElo "2386"]
[BlackElo "2314"]
[Annotator "ChessBase"]
[PlyCount "87"]
[EventDate "2020.08.07"]
[EventType "tourn"]
[EventCountry "SVK"]
[SourceTitle "playchess.com"]
[Source "ChessBase"]
[SourceQuality "1"]
[TimeControl "40/5400+30:1800+30"]

1. c4 {[%emt 0:00:00]} Nf6 {[%emt 0:03:32]} 2. Nc3 {[%emt 0:00:00]} g6 {[%emt 0:00:06]} 3. e4 {[%emt 0:00:00]} d6 {[%emt 0:00:04]} 4. d4 {[%emt 0:00:00]} Bg7 {[%emt 0:00:05]} 5. Nf3 {[%emt 0:00:00]} O-O {[%emt 0:00:06]} 6. h3 {[%emt 0:00:05]} e5 {[%emt 0:00:26]} 7. d5 {[%emt 0:00:06]} a5 {[%emt 0:00:04]} 8. Bg5 {[%emt 0:04:02]} Na6 {[%emt 0:00:07]} 9. Nd2 {[%emt 0:03:49]} Qe8 {[%emt 0:00:08]} 10. Be2 {[%emt 0:00:36]} Nd7 {[%emt 0:00:12]} 11. a3 {[%emt 0:01:47]} Nb6 {[%emt 0:05:35]} 12. b3 {[%emt 0:00:21]} f5 {[%emt 0:02:23]} 13. O-O {[%emt 0:04:32]} Bd7 {[%emt 0:09:01]} 14. Rb1 {[%emt 0:00:59]} f4 {[%emt 0:13:07]} 15. Bh4 {[%emt 0:01:54]} g5 {[%emt 0:11:23]} 16. Bxg5 {[%emt 0:05:45]} Qg6 {[%emt 0:00:05]} 17. h4 {[%emt 0:01:38]} h6 {[%emt 0:00:09]} 18. Be7 {[%emt 0:00:27]} Rf7 {[%emt 0:01:06]} 19. h5 {[%emt 0:04:51]} Qh7 {[%emt 0:05:52]} 20. Bh4 {[%emt 0:00:15]} Kh8 {[%emt 0:01:22]} 21. g4 {[%emt 0:02:34]} fxg3 {[%emt 0:04:31]} 22. fxg3 {[%emt 0:00:09]} Raf8 {[%emt 0:00:21]} 23. Rxf7 {[%emt 0:05:18]} Rxf7 {[%emt 0:00:05]} 24. Bg4 {[%emt 0:00:20]} Bf6 {[%emt 0:01:05]} 25. Bxf6+ {[%emt 0:04:07]} Rxf6 {[%emt 0:00:06]} 26. Kg2 {[%emt 0:01:56]} Nc5 {[%emt 0:01:08]} 27. Bxd7 {[%emt 0:00:52]} Qxd7 {[%emt 0:01:07]} 28. Qe2 {[%emt 0:00:36]} Qf7 {[%emt 0:02:22]} 29. Nd1 {[%emt 0:01:08]} Qg7 {[%emt 0:03:42]} 30. b4 {[%emt 0:01:20]} axb4 {[%emt 0:00:04]} 31. axb4 {[%emt 0:00:06]} Ncd7 {[%emt 0:00:07]} 32. Ne3 {[%emt 0:01:19]} Rf8 {[%emt 0:00:27]} 33. Nf5 {[%emt 0:00:36]} Qh7 {[%emt 0:02:35]} 34. Nf3 {[%emt 0:02:29]} Rg8 {[%emt 0:01:23]} 35. N3h4 {[%emt 0:01:07]} Rg5 {[%emt 0:00:08]} 36. Ng6+ {[%emt 0:01:51]} Kg8 {[%emt 0:00:01]} 37. Nfe7+ {[%emt 0:00:40]} Kf7 {[%emt 0:01:16]} 38. c5 {[%emt 0:00:30]} Nf6 {[%emt 0:00:19]} 39. cxb6 {[%emt 0:00:17]} Nxh5 {[%emt 0:00:13]} 40. Rf1+ {[%emt 0:00:30]} Nf4+ {[%emt 0:00:43]} 41. Rxf4+ {[%emt 0:31:33]} exf4 {[%emt 0:30:13]} 42. bxc7 {[%emt 0:00:30]} Rxg3+ {[%emt 0:01:00]} 43. Kh2 {[%emt 0:00:11]} Rc3 {[%emt 0:00:31]} 44. Qg4 {[%emt 0:00:16]} 1-0

[Event "Int SVK-ch GM 2020"]
[Site "Drienica"]
[Date "2020.08.13"]
[Round "7.2"]
[White "Petenyi, Tamas"]
[Black "Mrva, Martin"]
[Result "1/2-1/2"]
[ECO "C65"]
[WhiteElo "2436"]
[BlackElo "2386"]
[Annotator "ChessBase"]
[PlyCount "133"]
[EventDate "2020.08.07"]
[EventType "tourn"]
[EventCountry "SVK"]
[SourceTitle "playchess.com"]
[Source "ChessBase"]
[SourceQuality "1"]
[TimeControl "40/5400+30:1800+30"]

1. e4 {[%emt 0:01:10]} e5 {[%emt 0:00:25]} 2. Nf3 {[%emt 0:00:08]} Nc6 {[%emt 0:00:08]} 3. Bb5 {[%emt 0:00:23]} Nf6 {[%emt 0:00:27]} 4. Qe2 {[%emt 0:02:09]} Bc5 {[%emt 0:02:13]} 5. c3 {[%emt 0:01:07]} O-O {[%emt 0:02:37]} 6. d3 {[%emt 0:00:32]} h6 {[%emt 0:09:42]} 7. Be3 {[%emt 0:10:24]} Bxe3 {[%emt 0:00:48]} 8. fxe3 {[%emt 0:01:27]} d5 {[%emt 0:00:13]} 9. Nbd2 {[%emt 0:06:11]} a6 {[%emt 0:07:15]} 10. Bxc6 {[%emt 0:01:14]} bxc6 {[%emt 0:00:06]} 11. Nxe5 {[%emt 0:03:30]} dxe4 {[%emt 0:00:46]} 12. d4 {[%emt 0:01:15]} a5 {[%emt 0:08:45]} 13. O-O {[%emt 0:08:18]} Ba6 {[%emt 0:02:09]} 14. c4 {[%emt 0:01:19]} c5 {[%emt 0:00:24]} 15. Nb3 {[%emt 0:09:26]} cxd4 {[%emt 0:08:16]} 16. Nxd4 {[%emt 0:00:30]} Re8 {[%emt 0:04:04]} 17. Nec6 {[%emt 0:12:33]} Qd6 {[%emt 0:05:22]} 18. Nxa5 {[%emt 0:01:32]} Re5 {[%emt 0:09:17]} 19. b4 {[%emt 0:03:14]} Rh5 {[%emt 0:03:01]} 20. h3 {[%emt 0:04:32]} Qxb4 {[%emt 0:01:22]} 21. Rxf6 {[%emt 0:01:06]} Rxa5 {[%emt 0:00:41]} 22. Rc6 {[%emt 0:05:09]} Rc5 {[%emt 0:04:00]} 23. Rxc5 {[%emt 0:01:58]} Qxc5 {[%emt 0:00:06]} 24. Rc1 {[%emt 0:01:01]} Bc8 {[%emt 0:01:17]} 25. Rb1 {[%emt 0:05:01]} Bd7 {[%emt 0:02:09]} 26. Nb3 {[%emt 0:03:25]} Qg5 {[%emt 0:00:27]} 27. Kh1 {[%emt 0:00:29]} Ra6 {[%emt 0:03:11]} 28. Rd1 {[%emt 0:01:34]} Be6 {[%emt 0:09:32]} 29. Nd4 {[%emt 0:01:21]} Bc8 {[%emt 0:00:14]} 30. Rf1 {[%emt 0:01:45]} Rg6 {[%emt 0:00:41]} 31. g4 {[%emt 0:04:13]} Qh4 {[%emt 0:01:26]} 32. Qh2 {[%emt 0:02:09]} h5 {[%emt 0:04:16]} 33. gxh5 {[%emt 0:00:59]} Qxh5 {[%emt 0:00:16]} 34. Ne2 {[%emt 0:02:51]} Qxh3 {[%emt 0:00:25]} 35. Qxh3 {[%emt 0:00:04]} Bxh3 {[%emt 0:00:07]} 36. Rf2 {[%emt 0:00:45]} Bg4 {[%emt 0:00:11]} 37. Nf4 {[%emt 0:00:46]} Rh6+ {[%emt 0:00:37]} 38. Kg1 {[%emt 0:00:57]} Bf3 {[%emt 0:00:12]} 39. Rh2 {[%emt 0:00:15]} Rd6 {[%emt 0:01:03]} 40. Nd5 {[%emt 0:01:09]} f6 {[%emt 0:04:37]} 41. Kf2 {[%emt 0:04:36]} c6 {[%emt 0:02:16]} 42. Ne7+ {[%emt 0:00:43]} Kf7 {[%emt 0:00:31]} 43. Nf5 {[%emt 0:00:30]} Rd1 {[%emt 0:04:06]} 44. Nd4 {[%emt 0:04:45]} Bg4 {[%emt 0:01:08]} 45. Nxc6 {[%emt 0:01:48]} Rc1 {[%emt 0:00:15]} 46. Kg3 {[%emt 0:01:21]} Be6 {[%emt 0:06:02]} 47. Nd4 {[%emt 0:01:09]} Bxc4 {[%emt 0:02:12]} 48. a3 {[%emt 0:04:35]} Rg1+ {[%emt 0:02:40]} 49. Rg2 {[%emt 0:00:39]} Rxg2+ {[%emt 0:08:24]} 50. Kxg2 {[%emt 0:00:01]} g5 {[%emt 0:00:17]} 51. Kg3 {[%emt 0:00:23]} Ke7 {[%emt 0:00:07]} 52. a4 {[%emt 0:04:44]} Kd6 {[%emt 0:00:14]} 53. Kg4 {[%emt 0:00:26]} Ke5 {[%emt 0:04:45]} 54. Nc6+ {[%emt 0:01:03]} Kd6 {[%emt 0:01:27]} 55. Nd4 {[%emt 0:00:06]} Ke5 {[%emt 0:00:07]} 56. Nc6+ {[%emt 0:00:05]} Kd5 {[%emt 0:00:06]} 57. Nd4 {[%emt 0:00:34]} Ba6 {[%emt 0:01:36]} 58. Kf5 {[%emt 0:01:34]} Bc8+ {[%emt 0:00:09]} 59. Kxf6 {[%emt 0:00:38]} g4 {[%emt 0:00:07]} 60. Kg5 {[%emt 0:00:44]} Kc4 {[%emt 0:01:10]} 61. Kf4 {[%emt 0:00:24]} Kd3 {[%emt 0:00:23]} 62. a5 {[%emt 0:03:33]} g3 {[%emt 0:00:11]} 63. Kxg3 {[%emt 0:00:04]} Kxe3 {[%emt 0:00:05]} 64. Nb3 {[%emt 0:00:38]} Ke2 {[%emt 0:00:18]} 65. Kf4 {[%emt 0:01:07]} e3 {[%emt 0:00:28]} 66. Nc1+ {[%emt 0:00:20]} Kd2 {[%emt 0:00:13]} 67. Nb3+ {[%emt 0:00:03]} 1/2-1/2

[Event "Int SVK-ch GM 2020"]
[Site "Drienica"]
[Date "2020.08.13"]
[Round "7.3"]
[White "Pechac, Jergus"]
[Black "Nayhebaver, Martin"]
[Result "1-0"]
[ECO "E18"]
[WhiteElo "2498"]
[BlackElo "2482"]
[Annotator "ChessBase"]
[PlyCount "81"]
[EventDate "2020.08.07"]
[EventType "tourn"]
[EventCountry "SVK"]
[SourceTitle "playchess.com"]
[Source "ChessBase"]
[SourceQuality "1"]
[TimeControl "40/5400+30:1800+30"]

1. Nf3 {[%emt 0:00:00]} Nf6 {[%emt 0:00:00]} 2. c4 {[%emt 0:00:00]} e6 {[%emt 0:00:26]} 3. g3 {[%emt 0:00:00]} b6 {[%emt 0:01:11]} 4. Bg2 {[%emt 0:00:05]} Bb7 {[%emt 0:00:05]} 5. O-O {[%emt 0:00:07]} Be7 {[%emt 0:00:15]} 6. d4 {[%emt 0:00:24]} O-O {[%emt 0:00:25]} 7. Nc3 {[%emt 0:00:04]} Ne4 {[%emt 0:00:27]} 8. Bd2 {[%emt 0:00:05]} d5 {[%emt 0:00:22]} 9. cxd5 {[%emt 0:00:05]} exd5 {[%emt 0:00:07]} 10. Qb3 {[%emt 0:00:03]} Na6 {[%emt 0:06:48]} 11. Bf4 {[%emt 0:00:09]} c5 {[%emt 0:01:40]} 12. Rfd1 {[%emt 0:00:05]} c4 {[%emt 0:01:18]} 13. Qc2 {[%emt 0:00:05]} f5 {[%emt 0:00:37]} 14. h4 {[%emt 0:01:36]} Nc7 {[%emt 0:05:54]} 15. e3 {[%emt 0:20:34]} Ne6 {[%emt 0:07:31]} 16. Bh3 {[%emt 0:01:41]} Nxf4 {[%emt 0:10:32]} 17. exf4 {[%emt 0:00:30]} a6 {[%emt 0:00:24]} 18. a4 {[%emt 0:01:47]} Kh8 {[%emt 0:11:24]} 19. Ne5 {[%emt 0:02:02]} Rc8 {[%emt 0:04:52]} 20. Kg2 {[%emt 0:02:18]} Rc7 {[%emt 0:02:55]} 21. Rh1 {[%emt 0:10:50]} Bf6 {[%emt 0:12:12]} 22. f3 {[%emt 0:00:34]} Bxe5 {[%emt 0:02:00]} 23. fxe5 {[%emt 0:01:30]} Nxc3 {[%emt 0:01:23]} 24. bxc3 {[%emt 0:00:12]} f4 {[%emt 0:00:14]} 25. Rae1 {[%emt 0:08:57]} Bc6 {[%emt 0:05:59]} 26. e6 {[%emt 0:00:48]} Qe8 {[%emt 0:01:06]} 27. Qb1 {[%emt 0:05:10]} Bxa4 {[%emt 0:08:36]} 28. Re5 {[%emt 0:02:52]} Bc6 {[%emt 0:00:38]} 29. Rhe1 {[%emt 0:01:37]} Qg6 {[%emt 0:06:20]} 30. Qxg6 {[%emt 0:00:57]} hxg6 {[%emt 0:00:01]} 31. h5 {[%emt 0:00:42]} Kh7 {[%emt 0:01:50]} 32. gxf4 {[%emt 0:02:08]} Re8 {[%emt 0:06:43]} 33. Rg5 {[%emt 0:00:35]} gxh5 {[%emt 0:00:36]} 34. Bf5+ {[%emt 0:00:23]} Kg8 {[%emt 0:00:07]} 35. Bg6 {[%emt 0:00:23]} Ra8 {[%emt 0:01:00]} 36. Rxh5 {[%emt 0:00:34]} Be8 {[%emt 0:00:17]} 37. f5 {[%emt 0:00:32]} Rc6 {[%emt 0:00:51]} 38. Bxe8 {[%emt 0:03:37]} Rxe8 {[%emt 0:00:06]} 39. Reh1 {[%emt 0:00:08]} Kf8 {[%emt 0:00:48]} 40. Rh8+ {[%emt 0:00:05]} Ke7 {[%emt 0:00:03]} 41. f6+ {[%emt 0:30:08]} 1-0

[Event "Int SVK-ch GM 2020"]
[Site "Drienica"]
[Date "2020.08.13"]
[Round "7.4"]
[White "Jurcik, Marian"]
[Black "Mazur, Stefan"]
[Result "1-0"]
[ECO "A52"]
[WhiteElo "2441"]
[BlackElo "2449"]
[Annotator "ChessBase"]
[PlyCount "65"]
[EventDate "2020.08.07"]
[EventType "tourn"]
[EventCountry "SVK"]
[SourceTitle "playchess.com"]
[Source "ChessBase"]
[SourceQuality "1"]
[TimeControl "40/5400+30:1800+30"]

1. d4 {[%emt 0:02:31]} Nf6 {[%emt 0:04:17]} 2. c4 {[%emt 0:00:12]} e5 {[%emt 0:00:41]} 3. dxe5 {[%emt 0:00:23]} Ng4 {[%emt 0:00:08]} 4. e3 {[%emt 0:00:51]} Nxe5 {[%emt 0:01:31]} 5. f4 {[%emt 0:00:14]} Ng6 {[%emt 0:00:53]} 6. h4 {[%emt 0:01:06]} Bb4+ {[%emt 0:09:39]} 7. Kf2 {[%emt 0:21:02]} Qf6 {[%emt 0:10:29]} 8. Qd4 {[%emt 0:06:08]} Qxd4 {[%emt 0:08:22]} 9. exd4 {[%emt 0:00:02]} d5 {[%emt 0:00:51]} 10. h5 {[%emt 0:04:25]} Nf8 {[%emt 0:00:46]} 11. Nc3 {[%emt 0:06:42]} Bxc3 {[%emt 0:03:10]} 12. bxc3 {[%emt 0:00:10]} Be6 {[%emt 0:00:07]} 13. cxd5 {[%emt 0:08:24]} Bxd5 {[%emt 0:00:09]} 14. Ba3 {[%emt 0:00:26]} Nfd7 {[%emt 0:14:42]} 15. Re1+ {[%emt 0:04:58]} Kd8 {[%emt 0:00:07]} 16. c4 {[%emt 0:00:14]} Be6 {[%emt 0:00:04]} 17. Bd3 {[%emt 0:01:40]} Nf6 {[%emt 0:01:39]} 18. Nf3 {[%emt 0:16:12]} a5 {[%emt 0:11:03]} 19. Ng5 {[%emt 0:02:07]} h6 {[%emt 0:04:13]} 20. Nxe6+ {[%emt 0:01:05]} fxe6 {[%emt 0:00:06]} 21. Rxe6 {[%emt 0:00:27]} Nc6 {[%emt 0:01:05]} 22. Bb2 {[%emt 0:04:33]} Re8 {[%emt 0:02:03]} 23. Rxe8+ {[%emt 0:02:19]} Nxe8 {[%emt 0:03:19]} 24. d5 {[%emt 0:01:28]} Nb4 {[%emt 0:00:18]} 25. Bg6 {[%emt 0:02:19]} Nxa2 {[%emt 0:06:39]} 26. Re1 {[%emt 0:06:42]} Kd7 {[%emt 0:00:13]} 27. Bf5+ {[%emt 0:00:25]} Kd8 {[%emt 0:01:48]} 28. Bg6 {[%emt 0:01:17]} Kd7 {[%emt 0:00:02]} 29. g4 {[%emt 0:01:04]} a4 {[%emt 0:10:28]} 30. g5 {[%emt 0:00:05]} Nb4 {[%emt 0:00:03]} 31. Rxe8 {[%emt 0:01:59]} Rxe8 {[%emt 0:00:06]} 32. Bxg7 {[%emt 0:00:18]} a3 {[%emt 0:01:14]} 33. gxh6 {[%emt 0:00:38]} 1-0

[Event "Int SVK-ch GM 2020"]
[Site "Drienica"]
[Date "2020.08.13"]
[Round "7.5"]
[White "Kostolansky, Sebastian Lukas"]
[Black "Druska, Juraj"]
[Result "1-0"]
[ECO "C77"]
[WhiteElo "2402"]
[BlackElo "2515"]
[Annotator "ChessBase"]
[PlyCount "91"]
[EventDate "2020.08.07"]
[EventType "tourn"]
[EventCountry "SVK"]
[SourceTitle "playchess.com"]
[Source "ChessBase"]
[SourceQuality "1"]
[TimeControl "40/5400+30:1800+30"]

1. e4 {[%emt 0:00:00]} e5 {[%emt 0:03:00]} 2. Nf3 {[%emt 0:00:00]} Nc6 {[%emt 0:00:08]} 3. Bb5 {[%emt 0:00:00]} a6 {[%emt 0:00:12]} 4. Ba4 {[%emt 0:00:07]} Nf6 {[%emt 0:00:11]} 5. d3 {[%emt 0:01:11]} d6 {[%emt 0:00:24]} 6. c3 {[%emt 0:01:20]} g6 {[%emt 0:00:16]} 7. O-O {[%emt 0:01:23]} Bg7 {[%emt 0:00:20]} 8. Re1 {[%emt 0:15:02]} O-O {[%emt 0:00:29]} 9. Nbd2 {[%emt 0:07:04]} Re8 {[%emt 0:01:11]} 10. Nf1 {[%emt 0:02:31]} h6 {[%emt 0:00:13]} 11. Ng3 {[%emt 0:04:15]} b5 {[%emt 0:01:08]} 12. Bc2 {[%emt 0:07:09]} a5 {[%emt 0:00:57]} 13. h3 {[%emt 0:04:03]} Bb7 {[%emt 0:07:20]} 14. d4 {[%emt 0:08:15]} exd4 {[%emt 0:01:43]} 15. cxd4 {[%emt 0:09:38]} Nb4 {[%emt 0:00:29]} 16. Bb1 {[%emt 0:00:06]} c5 {[%emt 0:00:07]} 17. Bf4 {[%emt 0:04:17]} a4 {[%emt 0:04:40]} 18. Qc1 {[%emt 0:08:21]} g5 {[%emt 0:28:04]} 19. Bd2 {[%emt 0:04:19]} Qd7 {[%emt 0:34:41]} 20. h4 {[%emt 0:11:49]} gxh4 {[%emt 0:09:43]} 21. Nxh4 {[%emt 0:02:21]} Qg4 {[%emt 0:00:40]} 22. Nhf5 {[%emt 0:00:26]} Bxe4 {[%emt 0:03:45]} 23. Bxe4 {[%emt 0:03:07]} Nxe4 {[%emt 0:00:26]} 24. Rxe4 {[%emt 0:01:28]} Rxe4 {[%emt 0:00:09]} 25. f3 {[%emt 0:00:13]} Bxd4+ {[%emt 0:00:20]} 26. Kf1 {[%emt 0:01:59]} Qg6 {[%emt 0:01:51]} 27. fxe4 {[%emt 0:00:32]} Re8 {[%emt 0:00:03]} 28. Bxb4 {[%emt 0:01:23]} cxb4 {[%emt 0:00:53]} 29. Qc6 {[%emt 0:00:46]} Kf8 {[%emt 0:00:28]} 30. Nxd6 {[%emt 0:01:21]} Rd8 {[%emt 0:00:31]} 31. Ngf5 {[%emt 0:00:12]} Bxb2 {[%emt 0:00:36]} 32. Qc7 {[%emt 0:00:23]} Qf6 {[%emt 0:00:21]} 33. Rd1 {[%emt 0:00:47]} Be5 {[%emt 0:00:35]} 34. Kg1 {[%emt 0:00:39]} b3 {[%emt 0:00:29]} 35. axb3 {[%emt 0:00:07]} a3 {[%emt 0:00:36]} 36. Qc5 {[%emt 0:00:26]} a2 {[%emt 0:00:25]} 37. Nb7+ {[%emt 0:00:53]} Kg8 {[%emt 0:00:35]} 38. Nxd8 {[%emt 0:00:34]} a1=Q {[%emt 0:00:27]} 39. Rxa1 {[%emt 0:00:06]} Bxa1 {[%emt 0:00:04]} 40. Nc6 {[%emt 0:00:15]} b4 {[%emt 0:00:29]} 41. Nxb4 {[%emt 0:03:05]} Qb2 {[%emt 0:02:15]} 42. Nxh6+ {[%emt 0:04:12]} Kh7 {[%emt 0:00:08]} 43. Nxf7 {[%emt 0:00:53]} Qxb3 {[%emt 0:00:48]} 44. Ng5+ {[%emt 0:02:39]} Kg6 {[%emt 0:03:35]} 45. Qf5+ {[%emt 0:00:32]} Kh6 {[%emt 0:00:16]} 46. Qe6+ {[%emt 0:01:01]} 1-0

[Event "Int SVK-ch GM 2020"]
[Site "Drienica"]
[Date "2020.08.14"]
[Round "8.2"]
[White "Mazur, Stefan"]
[Black "Kostolansky, Sebastian Lukas"]
[Result "1/2-1/2"]
[ECO "C11"]
[WhiteElo "2449"]
[BlackElo "2402"]
[Annotator "ChessBase"]
[PlyCount "62"]
[EventDate "2020.08.07"]
[EventType "tourn"]
[EventCountry "SVK"]
[SourceTitle "playchess.com"]
[Source "ChessBase"]
[SourceQuality "1"]
[TimeControl "40/5400+30:1800+30"]

1. e4 {[%emt 0:05:13]} e6 {[%emt 0:00:00]} 2. d4 {[%emt 0:00:36]} d5 {[%emt 0:00:00]} 3. Nc3 {[%emt 0:00:05]} Nf6 {[%emt 0:00:08]} 4. e5 {[%emt 0:00:06]} Nfd7 {[%emt 0:00:06]} 5. f4 {[%emt 0:00:08]} c5 {[%emt 0:00:06]} 6. Nf3 {[%emt 0:00:04]} Nc6 {[%emt 0:00:10]} 7. Be3 {[%emt 0:00:07]} Qb6 {[%emt 0:01:21]} 8. Na4 {[%emt 0:00:22]} Qa5+ {[%emt 0:00:06]} 9. c3 {[%emt 0:00:07]} cxd4 {[%emt 0:00:04]} 10. b4 {[%emt 0:00:43]} Nxb4 {[%emt 0:00:14]} 11. cxb4 {[%emt 0:00:39]} Bxb4+ {[%emt 0:00:06]} 12. Bd2 {[%emt 0:00:06]} Bxd2+ {[%emt 0:00:04]} 13. Nxd2 {[%emt 0:00:09]} b6 {[%emt 0:10:05]} 14. Qb3 {[%emt 0:10:05]} Ba6 {[%emt 0:24:49]} 15. Bxa6 {[%emt 0:01:15]} Qxa6 {[%emt 0:00:04]} 16. Kf2 {[%emt 0:02:31]} O-O {[%emt 0:03:58]} 17. Rac1 {[%emt 0:04:36]} Rfc8 18. Nf3 {[%emt 0:05:43]} Rc4 {[%emt 0:32:22]} 19. Rxc4 {[%emt 0:04:08]} dxc4 {[%emt 0:00:04]} 20. Qb4 {[%emt 0:00:10]} b5 {[%emt 0:00:20]} 21. Nc5 {[%emt 0:00:32]} Nxc5 {[%emt 0:02:30]} 22. Qxc5 {[%emt 0:00:39]} Qxa2+ {[%emt 0:09:04]} 23. Kg3 {[%emt 0:00:18]} Qc2 {[%emt 0:07:24]} 24. Qxd4 {[%emt 0:10:55]} b4 {[%emt 0:00:43]} 25. Ra1 {[%emt 0:28:47]} h6 {[%emt 0:00:18]} 26. Qd2 {[%emt 0:00:17]} Qg6+ {[%emt 0:02:26]} 27. Kh3 {[%emt 0:00:24]} Qf5+ {[%emt 0:02:29]} 28. Kg3 {[%emt 0:02:59]} Qg6+ {[%emt 0:00:05]} 29. Kh3 {[%emt 0:00:05]} c3 {[%emt 0:00:36]} 30. Qd4 {[%emt 0:00:57]} a5 {[%emt 0:00:45]} 31. Qc4 {[%emt 0:01:06]} Rd8 {[%emt 0:02:35]} 1/2-1/2

[Event "Int SVK-ch GM 2020"]
[Site "Drienica"]
[Date "2020.08.14"]
[Round "8.3"]
[White "Nayhebaver, Martin"]
[Black "Jurcik, Marian"]
[Result "1/2-1/2"]
[ECO "C02"]
[WhiteElo "2482"]
[BlackElo "2441"]
[Annotator "ChessBase"]
[PlyCount "61"]
[EventDate "2020.08.07"]
[EventType "tourn"]
[EventCountry "SVK"]
[SourceTitle "playchess.com"]
[Source "ChessBase"]
[SourceQuality "1"]
[TimeControl "40/5400+30:1800+30"]

1. e4 e6 2. d4 d5 3. e5 {[%emt 0:03:49]} Bd7 {[%emt 0:01:11]} 4. c3 {[%emt 0:03:07]} a6 {[%emt 0:01:42]} 5. Bd3 {[%emt 0:01:39]} Bb5 {[%emt 0:00:37]} 6. Ne2 {[%emt 0:00:16]} Bxd3 {[%emt 0:01:43]} 7. Qxd3 {[%emt 0:00:12]} c5 {[%emt 0:06:49]} 8. O-O {[%emt 0:00:40]} Nc6 {[%emt 0:01:59]} 9. Nd2 {[%emt 0:01:09]} Nge7 {[%emt 0:07:39]} 10. Nf3 {[%emt 0:02:34]} h6 {[%emt 0:17:00]} 11. dxc5 {[%emt 0:07:01]} Ng6 {[%emt 0:00:39]} 12. Ned4 {[%emt 0:01:33]} Ncxe5 {[%emt 0:08:48]} 13. Nxe5 {[%emt 0:02:29]} Nxe5 {[%emt 0:00:02]} 14. Qg3 {[%emt 0:01:55]} Nc6 {[%emt 0:00:29]} 15. Re1 Qd7 {[%emt 0:07:36]} 16. b4 {[%emt 0:07:34]} g6 {[%emt 0:00:53]} 17. Bf4 {[%emt 0:04:06]} Bg7 {[%emt 0:08:06]} 18. Nf5 {[%emt 0:14:35]} Kf8 {[%emt 0:04:54]} 19. Bd6+ {[%emt 0:02:34]} Kg8 {[%emt 0:00:03]} 20. Nxg7 {[%emt 0:00:13]} Kxg7 {[%emt 0:00:08]} 21. c4 {[%emt 0:01:21]} f6 {[%emt 0:03:09]} 22. Qh3 {[%emt 0:08:41]} dxc4 {[%emt 0:01:32]} 23. Rad1 {[%emt 0:07:33]} Qf7 {[%emt 0:00:08]} 24. Qc3 {[%emt 0:02:24]} e5 {[%emt 0:01:14]} 25. a4 {[%emt 0:01:18]} Rhe8 {[%emt 0:00:43]} 26. Re4 {[%emt 0:01:14]} g5 {[%emt 0:01:31]} 27. Qxc4 {[%emt 0:05:23]} Qxc4 {[%emt 0:04:09]} 28. Rxc4 {[%emt 0:00:02]} Nd4 {[%emt 0:00:11]} 29. f3 {[%emt 0:05:39]} Kf7 {[%emt 0:00:24]} 30. Kf2 {[%emt 0:00:42]} Rad8 {[%emt 0:06:21]} 31. g4 1/2-1/2